{"text_format":"1","workbook":"xlsx","n_sheets":10,"sheets":["Instruções","Cadastro de Fornecedores","Consolidado","F1","F2","F3","F4","F5","Enderecos","Listas"],"not_rendered":{"charts":0,"images":8,"macros":1,"external_links":0,"defined_names":3,"comments":0,"pivot_tables":0},"unopened":[],"bounds":{"document_bytes":16777216,"sheet_cells":100000,"rows_first":2000,"rows_last":500,"rows_between":2000,"halvings":0,"cell_chars":16384,"cell_head_chars":4096},"cells_cut":0,"cells_raw":0,"read":"whole","date_system":"1900"}

{"sheet":"Instruções","index":0,"n_rows":14,"n_cols":11,"rows_kept":14,"cut":false,"hidden":false,"merged":[]}
[]
[null,"Instruções"]
[]
[null,"A RenovaCalc é uma ferramenta de cálculo de emissões de Gases de Efeito Estufa (GEE) de biocombustíveis, de acordo com o referencial metodológico estabelecido pelo programa RenovaBio."]
[]
[null,"O responsável pelo preenchimento deve estar atento às seguintes diretrizes:"]
[]
[null,"1. Só devem ser preenchidas as células demarcadas em pontilhado:",null,null,null,null," Ao optar pelo \"padrão\", estas células serão automaticamente preenchidas pela RenovaCalc "]
[]
[null,"2. A unidade de preenchimento de cada parâmetro é padrão estará sempre indicada ao lado da célula que deve ser preenchida. Por exemplo:",null,null,null,null,null,null,"Ureia",null," kg N/TC"]
[]
[null,"2.1. O usuário deve sempre inserir os dados na unidade pré-indicada, sendo considerado incorreto qualquer dado que esteja em outra unidade "]
[]
[null,"2.2. Ao selecionar a célula a ser preenchida, orientações de como preencher cada parâmetro serão fornecidas.    Por exemplo:"]

{"sheet":"Cadastro de Fornecedores","index":1,"n_rows":13,"n_cols":6,"rows_kept":13,"cut":false,"hidden":false,"merged":[]}
[]
[null,"Cadastro de Fornecedores de Milho"]
[]
[]
[null,"Identificação do fornecedor","Número de registro no CAR","Área total","Produção total","Opção de preenchimento"]
[null,null,null,"ha","t soja"]
[null,{"$f":"'F1'!$C$4","v":"Fornecedor Hipotético 1"},{"$f":"'F1'!$D$17","v":"UF-1302405-E6D3.395B.6D27.4F42.AE22.DD56.987C.DD51"},{"$f":"'F1'!$D$22","v":1},{"$f":"'F1'!$D$24","v":5.25262206186013},{"$f":"CONCATENATE(\"Dados \",'F1'!$B$29)","v":"Dados Primários"}]
[null,{"$f":"'F2'!$C$4","v":"Fornecedor Hipotético 2"},{"$f":"'F2'!$D$17","v":"UF-1302405-E6D3.395B.6D27.4F42.AE22.DD56.987C.DD52"},{"$f":"'F2'!$D$22","v":1},{"$f":"'F2'!$D$24","v":5.25262206186013},{"$f":"CONCATENATE(\"Dados \",'F2'!$B$29)","v":"Dados Primários"}]
[null,{"$f":"'F3'!$C$4","v":"Fornecedor Hipotético 3"},{"$f":"'F3'!$D$17","v":"UF-1302405-E6D3.395B.6D27.4F42.AE22.DD56.987C.DD53"},{"$f":"'F3'!$D$22","v":1},{"$f":"'F3'!$D$24","v":5.25262206186013},{"$f":"CONCATENATE(\"Dados \",'F3'!$B$29)","v":"Dados Primários"}]
[null,{"$f":"'F4'!$C$4","v":"Fornecedor Hipotético 4"},{"$f":"'F4'!$D$17","v":"UF-1302405-E6D3.395B.6D27.4F42.AE22.DD56.987C.DD54"},{"$f":"'F4'!$D$22","v":1},{"$f":"'F4'!$D$24","v":5.25262206186013},{"$f":"CONCATENATE(\"Dados \",'F4'!$B$29)","v":"Dados Primários"}]
[null,{"$f":"'F5'!$C$4","v":"Fornecedor Hipotético 5"},{"$f":"'F5'!$D$17","v":"UF-1302405-E6D3.395B.6D27.4F42.AE22.DD56.987C.DD55"},{"$f":"'F5'!$D$22","v":1},{"$f":"'F5'!$D$24","v":5.25262206186013},{"$f":"CONCATENATE(\"Dados \",'F5'!$B$29)","v":"Dados Primários"}]
[null,"             Adicionar fornecedor*"]
[null,"*Funcionalidade a ser inserida no sistema informatizado"]

{"sheet":"Consolidado","index":2,"n_rows":79,"n_cols":8,"rows_kept":79,"cut":false,"hidden":false,"merged":[[13,1,13,7],[14,1,14,2],[26,1,26,7],[3,2,3,7],[5,2,5,7],[7,2,7,7],[9,2,9,3],[12,1,12,7],[16,3,16,4],[63,1,63,7],[38,1,38,7],[56,1,56,7],[35,1,35,7],[30,1,30,7]]}
[]
[null,"Fornecedores de Milho"]
[]
[null,"Nome da Usina:","Usina Hipotética"]
[]
[null,"CNPJ:","00.000.000/0000-00"]
[]
[null,"Responsável pelo preenchimento:","GT ACV RenovaCalc"]
[]
[null,"Telefone :","(00) 0000-0000"]
[]
[]
[null,"Fornecedores - Dados consolidados"]
[null,"Informações gerais"]
[null,"Houve supressão de vegetação nativa a partir de 26 de dezembro de 2017?",null,{"$f":"IF(OR('F1'!D15=\"Sim\",'F2'!D15=\"Sim\",'F3'!D15=\"Sim\",'F4'!D15=\"Sim\",'F5'!D15=\"Sim\"),\"Sim\",\"Não\")","v":"Não"}]
[]
[null,null,"Número de registro no CAR","Cadastro de fornecedores"]
[]
[null,null,"Situação do CAR",{"$f":"IF(AND('F1'!D19=\"Ativo\",'F2'!D19=\"Ativo\",'F3'!D19=\"Ativo\",'F4'!D19=\"Ativo\",'F5'!D19=\"Ativo\"),\"Ativo\",IF(OR('F1'!D19=\"Cancelado\",'F2'!D19=\"Cancelado\",'F3'!D19=\"Cancelado\",'F4'!D19=\"Cancelado\",'F5'!D19=\"Cancelado\"),\"Cancelado\",\"Pendente\"))","v":"Ativo"}]
[]
[null,null,"Sistema de plantio","Convencional"]
[null,null,"Área total",{"$f":"'F1'!D22+'F2'!D22+'F3'!D22+'F4'!D22+'F5'!D22","v":5},"ha"]
[]
[null,null,"Produção total (base úmida)",{"$f":"'F1'!D24+'F2'!D24+'F3'!D24+'F4'!D24+'F5'!D24","v":26.26311030930065},"t milho","Umidade",{"$f":"IF(('F1'!D24*'F1'!$D$24+'F2'!D24*'F2'!$D$24+'F3'!D24*'F3'!$D$24+'F4'!D24*'F4'!$D$24+'F5'!D24*'F5'!$D$24)<>0,('F1'!G24*'F1'!D24*'F1'!$D$24+'F2'!G24*'F2'!D24*'F2'!$D$24+'F3'!G24*'F3'!D24*'F3'!$D$24+'F4'!G24*'F4'!D24*'F4'!$D$24+'F5'!G24*'F5'!D24*'F5'!$D$24)/('F1'!D24*'F1'!$D$24+'F2'!D24*'F2'!$D$24+'F3'!D24*'F3'!$D$24+'F4'!D24*'F4'!$D$24+'F5'!D24*'F5'!$D$24),0)","v":0.13}]
[null,null,"Palha recolhida (base seca)",{"$f":"'F1'!D25+'F2'!D25+'F3'!D25+'F4'!D25+'F5'!D25","v":0},"t palha"]
[]
[null,"Tipo de preenchimento"]
[null,"Tipo de dados forneceidos pelos fornecedores:"]
[null,"Em função das informações de cada fornecedor"]
[]
[null,"Corretivos"]
[null,null,"Calcário calcítico",{"$f":"('F1'!D32*'F1'!$D$24+'F2'!D32*'F2'!$D$24+'F3'!D32*'F3'!$D$24+'F4'!D32*'F4'!$D$24+'F5'!D32*'F5'!$D$24)/$D$24","v":0},"kg/t milho"]
[null,null,"Calcário dolomítico",{"$f":"('F1'!D33*'F1'!$D$24+'F2'!D33*'F2'!$D$24+'F3'!D33*'F3'!$D$24+'F4'!D33*'F4'!$D$24+'F5'!D33*'F5'!$D$24)/$D$24","v":42.306912548649237},"kg/t milho"]
[null,null,"Gesso",{"$f":"('F1'!D34*'F1'!$D$24+'F2'!D34*'F2'!$D$24+'F3'!D34*'F3'!$D$24+'F4'!D34*'F4'!$D$24+'F5'!D34*'F5'!$D$24)/$D$24","v":0},"kg/t milho"]
[]
[null,"Sementes"]
[null,null,"Sementes",{"$f":"('F1'!D37*'F1'!$D$24+'F2'!D37*'F2'!$D$24+'F3'!D37*'F3'!$D$24+'F4'!D37*'F4'!$D$24+'F5'!D37*'F5'!$D$24)/$D$24","v":4.6433761724416263},"kg/t milho"]
[]
[null,"Fertilizantes Sintéticos"]
[null,null,"Ureia",{"$f":"('F1'!D40*'F1'!$D$24+'F2'!D40*'F2'!$D$24+'F3'!D40*'F3'!$D$24+'F4'!D40*'F4'!$D$24+'F5'!D40*'F5'!$D$24)/$D$24","v":12.572838281743254},"kg N/t milho"]
[null,null,"Fosfato monoamônico (MAP)",{"$f":"('F1'!D41*'F1'!$D$24+'F2'!D41*'F2'!$D$24+'F3'!D41*'F3'!$D$24+'F4'!D41*'F4'!$D$24+'F5'!D41*'F5'!$D$24)/$D$24","v":0},"kg N/t milho"]
[null,null,"Fosfato monoamônico (MAP)",{"$f":"('F1'!D42*'F1'!$D$24+'F2'!D42*'F2'!$D$24+'F3'!D42*'F3'!$D$24+'F4'!D42*'F4'!$D$24+'F5'!D42*'F5'!$D$24)/$D$24","v":0},"kg P₂O₅/t milho"]
[null,null,"Fosfato diamônico (DAP)",{"$f":"('F1'!D43*'F1'!$D$24+'F2'!D43*'F2'!$D$24+'F3'!D43*'F3'!$D$24+'F4'!D43*'F4'!$D$24+'F5'!D43*'F5'!$D$24)/$D$24","v":0},"kg N/t milho"]
[null,null,"Fosfato diamônico (DAP)",{"$f":"('F1'!D44*'F1'!$D$24+'F2'!D44*'F2'!$D$24+'F3'!D44*'F3'!$D$24+'F4'!D44*'F4'!$D$24+'F5'!D44*'F5'!$D$24)/$D$24","v":0},"kg P₂O₅/t milho"]
[null,null,"Nitrato de amônio",{"$f":"('F1'!D45*'F1'!$D$24+'F2'!D45*'F2'!$D$24+'F3'!D45*'F3'!$D$24+'F4'!D45*'F4'!$D$24+'F5'!D45*'F5'!$D$24)/$D$24","v":0},"kg N/t milho"]
[null,null,"Solução de nitrato de amônio e ureia (UAN)",{"$f":"('F1'!D46*'F1'!$D$24+'F2'!D46*'F2'!$D$24+'F3'!D46*'F3'!$D$24+'F4'!D46*'F4'!$D$24+'F5'!D46*'F5'!$D$24)/$D$24","v":0},"kg N/t milho"]
[null,null,"Amônia anidra",{"$f":"('F1'!D47*'F1'!$D$24+'F2'!D47*'F2'!$D$24+'F3'!D47*'F3'!$D$24+'F4'!D47*'F4'!$D$24+'F5'!D47*'F5'!$D$24)/$D$24","v":0},"kg N/t milho"]
[null,null,"Sulfato de amônio",{"$f":"('F1'!D48*'F1'!$D$24+'F2'!D48*'F2'!$D$24+'F3'!D48*'F3'!$D$24+'F4'!D48*'F4'!$D$24+'F5'!D48*'F5'!$D$24)/$D$24","v":0},"kg N/t milho"]
[null,null,"Nitrato de amônio e cálcio (CAN)",{"$f":"('F1'!D49*'F1'!$D$24+'F2'!D49*'F2'!$D$24+'F3'!D49*'F3'!$D$24+'F4'!D49*'F4'!$D$24+'F5'!D49*'F5'!$D$24)/$D$24","v":0},"kg N/t milho"]
[null,null,"Superfosfato simples (SSP)",{"$f":"('F1'!D50*'F1'!$D$24+'F2'!D50*'F2'!$D$24+'F3'!D50*'F3'!$D$24+'F4'!D50*'F4'!$D$24+'F5'!D50*'F5'!$D$24)/$D$24","v":10.914972489850966},"kg P₂O₅/t milho"]
[null,null,"Superfosfato triplo (TSP)",{"$f":"('F1'!D51*'F1'!$D$24+'F2'!D51*'F2'!$D$24+'F3'!D51*'F3'!$D$24+'F4'!D51*'F4'!$D$24+'F5'!D51*'F5'!$D$24)/$D$24","v":0},"kg P₂O₅/t milho"]
[null,null,"Cloreto de potássio (KCl)",{"$f":"('F1'!D52*'F1'!$D$24+'F2'!D52*'F2'!$D$24+'F3'!D52*'F3'!$D$24+'F4'!D52*'F4'!$D$24+'F5'!D52*'F5'!$D$24)/$D$24","v":11.208923042124352},"kg K₂O/t milho"]
[null,"Outros","especificar",{"$f":"('F1'!D53*'F1'!$D$24+'F2'!D53*'F2'!$D$24+'F3'!D53*'F3'!$D$24+'F4'!D53*'F4'!$D$24+'F5'!D53*'F5'!$D$24)/$D$24","v":0},"kg N/t milho"]
[null,"Outros","especificar",{"$f":"('F1'!D54*'F1'!$D$24+'F2'!D54*'F2'!$D$24+'F3'!D54*'F3'!$D$24+'F4'!D54*'F4'!$D$24+'F5'!D54*'F5'!$D$24)/$D$24","v":0},"kg P₂O₅/t milho"]
[null,"Outros","especificar",{"$f":"('F1'!D55*'F1'!$D$24+'F2'!D55*'F2'!$D$24+'F3'!D55*'F3'!$D$24+'F4'!D55*'F4'!$D$24+'F5'!D55*'F5'!$D$24)/$D$24","v":0},"kg K₂O/t milho"]
[]
[null,"Fertilizantes Orgânicos/Organominerais"]
[null,null,"Vinhaça",{"$f":"('F1'!D58*'F1'!$D$24+'F2'!D58*'F2'!$D$24+'F3'!D58*'F3'!$D$24+'F4'!D58*'F4'!$D$24+'F5'!D58*'F5'!$D$24)/$D$24","v":0},"kg/t milho","Concentração de N",{"$f":"IF(('F1'!D58*'F1'!$D$24+'F2'!D58*'F2'!$D$24+'F3'!D58*'F3'!$D$24+'F4'!D58*'F4'!$D$24+'F5'!D58*'F5'!$D$24)<>0,('F1'!G58*'F1'!D58*'F1'!$D$24+'F2'!G58*'F2'!D58*'F2'!$D$24+'F3'!G58*'F3'!D58*'F3'!$D$24+'F4'!G58*'F4'!D58*'F4'!$D$24+'F5'!G58*'F5'!D58*'F5'!$D$24)/('F1'!D58*'F1'!$D$24+'F2'!D58*'F2'!$D$24+'F3'!D58*'F3'!$D$24+'F4'!D58*'F4'!$D$24+'F5'!D58*'F5'!$D$24),0)","v":0},"g N/L"]
[null,null,"Torta de Filtro (base úmida)",{"$f":"('F1'!D59*'F1'!$D$24+'F2'!D59*'F2'!$D$24+'F3'!D59*'F3'!$D$24+'F4'!D59*'F4'!$D$24+'F5'!D59*'F5'!$D$24)/$D$24","v":0},"kg/t milho","Concentração de N",{"$f":"IF(('F1'!D59*'F1'!$D$24+'F2'!D59*'F2'!$D$24+'F3'!D59*'F3'!$D$24+'F4'!D59*'F4'!$D$24+'F5'!D59*'F5'!$D$24)<>0,('F1'!G59*'F1'!D59*'F1'!$D$24+'F2'!G59*'F2'!D59*'F2'!$D$24+'F3'!G59*'F3'!D59*'F3'!$D$24+'F4'!G59*'F4'!D59*'F4'!$D$24+'F5'!G59*'F5'!D59*'F5'!$D$24)/('F1'!D59*'F1'!$D$24+'F2'!D59*'F2'!$D$24+'F3'!D59*'F3'!$D$24+'F4'!D59*'F4'!$D$24+'F5'!D59*'F5'!$D$24),0)","v":0},"g N/kg"]
[null,null,"Cinzas e fuligem (base úmida)",{"$f":"('F1'!D60*'F1'!$D$24+'F2'!D60*'F2'!$D$24+'F3'!D60*'F3'!$D$24+'F4'!D60*'F4'!$D$24+'F5'!D60*'F5'!$D$24)/$D$24","v":0},"kg/t milho","Concentração de N",{"$f":"IF(('F1'!D60*'F1'!$D$24+'F2'!D60*'F2'!$D$24+'F3'!D60*'F3'!$D$24+'F4'!D60*'F4'!$D$24+'F5'!D60*'F5'!$D$24)<>0,('F1'!G60*'F1'!D60*'F1'!$D$24+'F2'!G60*'F2'!D60*'F2'!$D$24+'F3'!G60*'F3'!D60*'F3'!$D$24+'F4'!G60*'F4'!D60*'F4'!$D$24+'F5'!G60*'F5'!D60*'F5'!$D$24)/('F1'!D60*'F1'!$D$24+'F2'!D60*'F2'!$D$24+'F3'!D60*'F3'!$D$24+'F4'!D60*'F4'!$D$24+'F5'!D60*'F5'!$D$24),0)","v":0},"g N/kg"]
[null,"Outros","especificar",{"$f":"('F1'!D61*'F1'!$D$24+'F2'!D61*'F2'!$D$24+'F3'!D61*'F3'!$D$24+'F4'!D61*'F4'!$D$24+'F5'!D61*'F5'!$D$24)/$D$24","v":0},"kg/t milho","Concentração de N",{"$f":"IF(('F1'!D61*'F1'!$D$24+'F2'!D61*'F2'!$D$24+'F3'!D61*'F3'!$D$24+'F4'!D61*'F4'!$D$24+'F5'!D61*'F5'!$D$24)<>0,('F1'!G61*'F1'!D61*'F1'!$D$24+'F2'!G61*'F2'!D61*'F2'!$D$24+'F3'!G61*'F3'!D61*'F3'!$D$24+'F4'!G61*'F4'!D61*'F4'!$D$24+'F5'!G61*'F5'!D61*'F5'!$D$24)/('F1'!D61*'F1'!$D$24+'F2'!D61*'F2'!$D$24+'F3'!D61*'F3'!$D$24+'F4'!D61*'F4'!$D$24+'F5'!D61*'F5'!$D$24),0)","v":0},"g N/kg"]
[null,"Outros","especificar",{"$f":"('F1'!D62*'F1'!$D$24+'F2'!D62*'F2'!$D$24+'F3'!D62*'F3'!$D$24+'F4'!D62*'F4'!$D$24+'F5'!D62*'F5'!$D$24)/$D$24","v":0},"kg/t milho","Concentração de N",{"$f":"IF(('F1'!D62*'F1'!$D$24+'F2'!D62*'F2'!$D$24+'F3'!D62*'F3'!$D$24+'F4'!D62*'F4'!$D$24+'F5'!D62*'F5'!$D$24)<>0,('F1'!G62*'F1'!D62*'F1'!$D$24+'F2'!G62*'F2'!D62*'F2'!$D$24+'F3'!G62*'F3'!D62*'F3'!$D$24+'F4'!G62*'F4'!D62*'F4'!$D$24+'F5'!G62*'F5'!D62*'F5'!$D$24)/('F1'!D62*'F1'!$D$24+'F2'!D62*'F2'!$D$24+'F3'!D62*'F3'!$D$24+'F4'!D62*'F4'!$D$24+'F5'!D62*'F5'!$D$24),0)","v":0},"g N/kg"]
[]
[null,"Combustíveis e eletricidade da rede"]
[null,null,"Diesel - B8",{"$f":"('F1'!D65*'F1'!$D$24+'F2'!D65*'F2'!$D$24+'F3'!D65*'F3'!$D$24+'F4'!D65*'F4'!$D$24+'F5'!D65*'F5'!$D$24)/$D$24","v":4.8},"L/t milho"]
[null,null,"Diesel - B10",{"$f":"('F1'!D66*'F1'!$D$24+'F2'!D66*'F2'!$D$24+'F3'!D66*'F3'!$D$24+'F4'!D66*'F4'!$D$24+'F5'!D66*'F5'!$D$24)/$D$24","v":0},"L/t milho"]
[null,null,"Diesel - BX",{"$f":"('F1'!D67*'F1'!$D$24+'F2'!D67*'F2'!$D$24+'F3'!D67*'F3'!$D$24+'F4'!D67*'F4'!$D$24+'F5'!D67*'F5'!$D$24)/$D$24","v":0},"L/t milho","Teor de biodiesel na mistura",{"$f":"IF(('F1'!D67*'F1'!$D$24+'F2'!D67*'F2'!$D$24+'F3'!D67*'F3'!$D$24+'F4'!D67*'F4'!$D$24+'F5'!D67*'F5'!$D$24)<>0,('F1'!G67*'F1'!D67*'F1'!$D$24+'F2'!G67*'F2'!D67*'F2'!$D$24+'F3'!G67*'F3'!D67*'F3'!$D$24+'F4'!G67*'F4'!D67*'F4'!$D$24+'F5'!G67*'F5'!D67*'F5'!$D$24)/('F1'!D67*'F1'!$D$24+'F2'!D67*'F2'!$D$24+'F3'!D67*'F3'!$D$24+'F4'!D67*'F4'!$D$24+'F5'!D67*'F5'!$D$24),0)","v":0}]
[null,null,"Diesel - B20",{"$f":"('F1'!D68*'F1'!$D$24+'F2'!D68*'F2'!$D$24+'F3'!D68*'F3'!$D$24+'F4'!D68*'F4'!$D$24+'F5'!D68*'F5'!$D$24)/$D$24","v":0},"L/t milho"]
[null,null,"Diesel - B30",{"$f":"('F1'!D69*'F1'!$D$24+'F2'!D69*'F2'!$D$24+'F3'!D69*'F3'!$D$24+'F4'!D69*'F4'!$D$24+'F5'!D69*'F5'!$D$24)/$D$24","v":0},"L/t milho"]
[null,null,"Biodiesel - B100",{"$f":"('F1'!D70*'F1'!$D$24+'F2'!D70*'F2'!$D$24+'F3'!D70*'F3'!$D$24+'F4'!D70*'F4'!$D$24+'F5'!D70*'F5'!$D$24)/$D$24","v":0},"L/t milho"]
[null,null,"Gasolina C",{"$f":"('F1'!D71*'F1'!$D$24+'F2'!D71*'F2'!$D$24+'F3'!D71*'F3'!$D$24+'F4'!D71*'F4'!$D$24+'F5'!D71*'F5'!$D$24)/$D$24","v":0},"L/t milho"]
[null,null,"Etanol hidratado",{"$f":"('F1'!D72*'F1'!$D$24+'F2'!D72*'F2'!$D$24+'F3'!D72*'F3'!$D$24+'F4'!D72*'F4'!$D$24+'F5'!D72*'F5'!$D$24)/$D$24","v":0},"L/t milho"]
[null,null,"Biometano de terceiros",{"$f":"('F1'!D73*'F1'!$D$24+'F2'!D73*'F2'!$D$24+'F3'!D73*'F3'!$D$24+'F4'!D73*'F4'!$D$24+'F5'!D73*'F5'!$D$24)/$D$24","v":0},"Nm³/t milho"]
[null,null,"Biometano próprio",{"$f":"('F1'!D74*'F1'!$D$24+'F2'!D74*'F2'!$D$24+'F3'!D74*'F3'!$D$24+'F4'!D74*'F4'!$D$24+'F5'!D74*'F5'!$D$24)/$D$24","v":0},"Nm³/t milho"]
[null,null,"Eletricidade da rede - mix médio",{"$f":"('F1'!D75*'F1'!$D$24+'F2'!D75*'F2'!$D$24+'F3'!D75*'F3'!$D$24+'F4'!D75*'F4'!$D$24+'F5'!D75*'F5'!$D$24)/$D$24","v":0},"kWh/t milho"]
[null,null,"Eletricidade - PCH",{"$f":"('F1'!D76*'F1'!$D$24+'F2'!D76*'F2'!$D$24+'F3'!D76*'F3'!$D$24+'F4'!D76*'F4'!$D$24+'F5'!D76*'F5'!$D$24)/$D$24","v":0},"kWh/t milho"]
[null,null,"Eletricidade - biomassa",{"$f":"('F1'!D77*'F1'!$D$24+'F2'!D77*'F2'!$D$24+'F3'!D77*'F3'!$D$24+'F4'!D77*'F4'!$D$24+'F5'!D77*'F5'!$D$24)/$D$24","v":0},"kWh/t milho"]
[null,null,"Eletricidade - eólica",{"$f":"('F1'!D78*'F1'!$D$24+'F2'!D78*'F2'!$D$24+'F3'!D78*'F3'!$D$24+'F4'!D78*'F4'!$D$24+'F5'!D78*'F5'!$D$24)/$D$24","v":0},"kWh/t milho"]
[null,null,"Eletricidade - solar",{"$f":"('F1'!D79*'F1'!$D$24+'F2'!D79*'F2'!$D$24+'F3'!D79*'F3'!$D$24+'F4'!D79*'F4'!$D$24+'F5'!D79*'F5'!$D$24)/$D$24","v":0},"kWh/t milho"]

{"sheet":"F1","index":3,"n_rows":79,"n_cols":26,"rows_kept":79,"cut":false,"hidden":false,"merged":[[3,2,3,7],[5,2,5,7],[7,2,7,7],[9,2,9,3],[12,10,12,16],[12,19,12,25],[13,1,13,7],[13,10,13,16],[13,19,13,25],[12,1,12,7],[14,1,14,2],[26,1,26,7],[26,10,26,16],[26,19,26,25],[35,1,35,7],[35,19,35,25],[16,3,16,6],[38,1,38,7],[38,10,38,16],[38,19,38,25],[30,1,30,7],[30,10,30,16],[30,19,30,25],[35,10,35,16],[56,10,56,16],[63,10,63,16],[56,19,56,25],[63,1,63,7],[63,19,63,25],[56,1,56,7]]}
[]
[null,"Fornecedor de Milho"]
[]
[null,"Identificação do fornecedor:","Fornecedor Hipotético 1"]
[]
[null,"CNPJ/CPF:","00.000.000/0000-00"]
[]
[null,"Responsável pelo preenchimento:","GT ACV RenovaCalc"]
[]
[null,"Telefone :","(00) 0000-0000"]
[]
[]
[null,"Fornecedor",null,null,null,null,null,null,null,null,"Default - Milho",null,null,null,null,null,null,null,null,"Guarda dados de preenchimento"]
[null,"Informações gerais",null,null,null,null,null,null,null,null," Informações gerais",null,null,null,null,null,null,null,null,"Informações gerais"]
[null,"Houve supressão de vegetação nativa a partir de 26 de dezembro de 2017?",null,"Não"]
[]
[null,null,"Número de registro no CAR (ou número de protocolo)","UF-1302405-E6D3.395B.6D27.4F42.AE22.DD56.987C.DD51"]
[]
[null,null,"Situação do CAR","Ativo"]
[]
[null,null,"Sistema de plantio","Convencional"]
[null,null,"Área total",1,"ha"]
[]
[null,null,"Produção total (base úmida)",5.25262206186013,"t milho","Umidade",0.13]
[null,null,"Palha recolhida (base seca)",0,"t palha"]
[]
[null,"Tipo de preenchimento",null,null,null,null,null,null,null,null,"Tipo de preenchimento",null,null,null,null,null,null,null,null,"Tipo de preenchimento"]
[null,"Tipo de dados forneceidos pelo fornecedor:",null,null,null,null,null,null,null,null,null,null,"Padrão",null,null,null,null,null,null,null,null,"Primários"]
[null,{"$f":"V28","v":"Primários"}]
[]
[null,"Corretivos",null,null,null,null,null,null,null,null,"Corretivos",null,null,null,null,null,null,null,null,"Corretivos"]
[null,null,"Calcário calcítico",0,"kg/t milho",null,null,null,null,null,null,"Calcário calcítico",0,"kg/t milho",null,null,null,null,null,null,"Calcário calcítico",0,"kg/t milho"]
[null,null,"Calcário dolomítico",42.306912548649237,"kg/t milho",null,null,null,null,null,null,"Calcário dolomítico",105.8,"kg/t milho",null,null,null,null,null,null,"Calcário dolomítico",42.306912548649237,"kg/t milho"]
[null,null,"Gesso",0,"kg/t milho",null,null,null,null,null,null,"Gesso",0,"kg/t milho",null,null,null,null,null,null,"Gesso",0,"kg/t milho"]
[]
[null,"Sementes",null,null,null,null,null,null,null,null,"Sementes",null,null,null,null,null,null,null,null,"Sementes"]
[null,null,"Sementes",4.6433761724416271,"kg/t milho",null,null,null,null,null,null,"Sementes",11.6,"kg/t milho",null,null,null,null,null,null,"Sementes",4.6433761724416271,"kg/t milho"]
[]
[null,"Fertilizantes Sintéticos",null,null,null,null,null,null,null,null,"Fertilizantes Sintéticos",null,null,null,null,null,null,null,null,"Fertilizantes Sintéticos"]
[null,null,"Ureia",12.572838281743252,"kg N/t milho",null,null,null,null,null,null,"Ureia",31.4,"kg N/t milho",null,null,null,null,null,null,"Ureia",12.572838281743252,"kg N/t milho"]
[null,null,"Fosfato Monoamônico (MAP)",0,"kg N/t milho",null,null,null,null,null,null,"Fosfato Monoamônico (MAP)",0,"kg N/t milho",null,null,null,null,null,null,"Fosfato Monoamônico (MAP)",0,"kg N/t milho"]
[null,null,"Fosfato Monoamônico (MAP)",0,"kg P₂O₅/t milho",null,null,null,null,null,null,"Fosfato Monoamônico (MAP)",0,"kg P₂O₅/t milho",null,null,null,null,null,null,"Fosfato Monoamônico (MAP)",0,"kg P₂O₅/t milho"]
[null,null,"Fosfato diamônico (DAP)",0,"kg N/t milho",null,null,null,null,null,null,"Fosfato diamônico (DAP)",0,"kg N/t milho",null,null,null,null,null,null,"Fosfato diamônico (DAP)",0,"kg N/t milho"]
[null,null,"Fosfato diamônico (DAP)",0,"kg P₂O₅/t milho",null,null,null,null,null,null,"Fosfato diamônico (DAP)",0,"kg P₂O₅/t milho",null,null,null,null,null,null,"Fosfato diamônico (DAP)",0,"kg P₂O₅/t milho"]
[null,null,"Nitrato de amônio",0,"kg N/t milho",null,null,null,null,null,null,"Nitrato de amônio",0,"kg N/t milho",null,null,null,null,null,null,"Nitrato de amônio",0,"kg N/t milho"]
[null,null,"Solução de nitrato de amônio e ureia (UAN)",0,"kg N/t milho",null,null,null,null,null,null,"Solução de nitrato de amônio e ureia (UAN)",0,"kg N/t milho",null,null,null,null,null,null,"Solução de nitrato de amônio e ureia (UAN)",0,"kg N/t milho"]
[null,null,"Amônia anidra",0,"kg N/t milho",null,null,null,null,null,null,"Amônia anidra",0,"kg N/t milho",null,null,null,null,null,null,"Amônia anidra",0,"kg N/t milho"]
[null,null,"Sulfato de amônio",0,"kg N/t milho",null,null,null,null,null,null,"Sulfato de amônio",0,"kg N/t milho",null,null,null,null,null,null,"Sulfato de amônio",0,"kg N/t milho"]
[null,null,"Nitrato de amônio e cálcio (CAN)",0,"kg N/t milho",null,null,null,null,null,null,"Nitrato de amônio e cálcio (CAN)",0,"kg N/t milho",null,null,null,null,null,null,"Nitrato de amônio e cálcio (CAN)",0,"kg N/t milho"]
[null,null,"Superfosfato simples (SSP)",10.914972489850966,"kg P₂O₅/t milho",null,null,null,null,null,null,"Superfosfato simples (SSP)",27.3,"kg P₂O₅/t milho",null,null,null,null,null,null,"Superfosfato simples (SSP)",10.914972489850966,"kg P₂O₅/t milho"]
[null,null,"Superfosfato triplo (TSP)",0,"kg P₂O₅/t milho",null,null,null,null,null,null,"Superfosfato triplo (TSP)",0,"kg P₂O₅/t milho",null,null,null,null,null,null,"Superfosfato triplo (TSP)",0,"kg P₂O₅/t milho"]
[null,null,"Cloreto de potássio (KCl)",11.208923042124352,"kg K₂O/t milho",null,null,null,null,null,null,"Cloreto de potássio (KCl)",28,"kg K₂O/t milho",null,null,null,null,null,null,"Cloreto de potássio (KCl)",11.208923042124352,"kg K₂O/t milho"]
[null,"Outros","especificar",0,"kg N/t milho",null,null,null,null,null,"Outros","especificar",0,"kg N/t milho",null,null,null,null,null,"Outros","especificar",0,"kg N/t milho"]
[null,"Outros","especificar",0,"kg P₂O₅/t milho",null,null,null,null,null,"Outros","especificar",0,"kg P₂O₅/t milho",null,null,null,null,null,"Outros","especificar",0,"kg P₂O₅/t milho"]
[null,"Outros","especificar",0,"kg K₂O/t milho",null,null,null,null,null,"Outros","especificar",0,"kg K₂O/t milho",null,null,null,null,null,"Outros","especificar",0,"kg K₂O/t milho"]
[]
[null,"Fertilizantes Orgânicos/Organominerais",null,null,null,null,null,null,null,null,"              Fertilizantes Orgânicos/Organominerais",null,null,null,null,null,null,null,null,"              Fertilizantes Orgânicos/Organominerais"]
[null,"Outros","especificar",0,"kg/t milho","Concentração de N",null,"g N/kg",null,null,"Outros","especificar",0,"kg/t milho","Concentração de N",null,"g N/kg",null,null,"Outros","especificar",0,"kg/t milho","Concentração de N",null,"g N/kg"]
[null,"Outros","especificar",0,"kg/t milho","Concentração de N",null,"g N/kg",null,null,"Outros","especificar",0,"kg/t milho","Concentração de N",null,"g N/kg",null,null,"Outros","especificar",0,"kg/t milho","Concentração de N",null,"g N/kg"]
[null,"Outros","especificar",0,"kg/t milho","Concentração de N",null,"g N/kg",null,null,"Outros","especificar",0,"kg/t milho","Concentração de N",null,"g N/kg",null,null,"Outros","especificar",0,"kg/t milho","Concentração de N",null,"g N/kg"]
[null,"Outros","especificar",0,"kg/t milho","Concentração de N",null,"g N/kg",null,null,"Outros","especificar",0,"kg/t milho","Concentração de N",null,"g N/kg",null,null,"Outros","especificar",0,"kg/t milho","Concentração de N",null,"g N/kg"]
[null,"Outros","especificar",0,"kg/t milho","Concentração de N",null,"g N/kg",null,null,"Outros","especificar",0,"kg/t milho","Concentração de N",null,"g N/kg",null,null,"Outros","especificar",0,"kg/t milho","Concentração de N",null,"g N/kg"]
[]
[null,"Combustíveis e eletricidade da rede",null,null,null,null,null,null,null,null,"              Combustíveis e eletricidade da rede",null,null,null,null,null,null,null,null,"              Combustíveis e eletricidade da rede"]
[null,null,"Diesel - B8",4.8,"L/t milho",null,null,null,null,null,null,"Diesel - B8",12,"L/t soja",null,null,null,null,null,null,"Diesel - B8",4.8,"L/t soja"]
[null,null,"Diesel - B10",0,"L/t milho",null,null,null,null,null,null,"Diesel - B10",0,"L/t soja",null,null,null,null,null,null,"Diesel - B10",0,"L/t soja"]
[null,null,"Diesel - BX",0,"L/t milho","Teor de biodiesel na mistura",0.11,null,null,null,null,"Diesel - BX",0,"L/t soja","Teor de biodiesel na mistura",0.11,null,null,null,null,"Diesel - BX",0,"L/t soja","Teor de biodiesel na mistura",0.11]
[null,null,"Diesel - B20",0,"L/t milho",null,null,null,null,null,null,"Diesel - B20",0,"L/t soja",null,null,null,null,null,null,"Diesel - B20",0,"L/t soja"]
[null,null,"Diesel - B30",0,"L/t milho",null,null,null,null,null,null,"Diesel - B30",0,"L/t soja",null,null,null,null,null,null,"Diesel - B30",0,"L/t soja"]
[null,null,"Biodiesel - B100",0,"L/t milho",null,null,null,null,null,null,"Biodiesel - B100",0,"L/t soja",null,null,null,null,null,null,"Biodiesel - B100",0,"L/t soja"]
[null,null,"Gasolina C",0,"L/t milho",null,null,null,null,null,null,"Gasolina C",0,"L/t soja",null,null,null,null,null,null,"Gasolina C",0,"L/t soja"]
[null,null,"Etanol hidratado",0,"L/t milho",null,null,null,null,null,null,"Etanol hidratado",0,"L/t soja",null,null,null,null,null,null,"Etanol hidratado",0,"L/t soja"]
[null,null,"Biometano de terceiros",0,"Nm³/t milho",null,null,null,null,null,null,"Biometano de terceiros",0,"Nm³/t soja",null,null,null,null,null,null,"Biometano de terceiros",0,"Nm³/t soja"]
[null,null,"Biometano próprio",0,"Nm³/t milho",null,null,null,null,null,null,"Biometano próprio",0,"Nm³/t soja",null,null,null,null,null,null,"Biometano próprio",0,"Nm³/t soja"]
[null,null,"Eletricidade da rede - mix médio",0,"kWh/t milho",null,null,null,null,null,null,"Eletricidade da rede - mix médio",0,"kWh/t soja",null,null,null,null,null,null,"Eletricidade da rede - mix médio",0,"kWh/t soja"]
[null,null,"Eletricidade - PCH",0,"kWh/t milho",null,null,null,null,null,null,"Eletricidade - PCH",0,"kWh/t soja",null,null,null,null,null,null,"Eletricidade - PCH",0,"kWh/t soja"]
[null,null,"Eletricidade - biomassa",0,"kWh/t milho",null,null,null,null,null,null,"Eletricidade - biomassa",0,"kWh/t soja",null,null,null,null,null,null,"Eletricidade - biomassa",0,"kWh/t soja"]
[null,null,"Eletricidade - eólica",0,"kWh/t milho",null,null,null,null,null,null,"Eletricidade - eólica",0,"kWh/t soja",null,null,null,null,null,null,"Eletricidade - eólica",0,"kWh/t soja"]
[null,null,"Eletricidade - solar",0,"kWh/t milho",null,null,null,null,null,null,"Eletricidade - solar",0,"kWh/t soja",null,null,null,null,null,null,"Eletricidade - solar",0,"kWh/t soja"]

{"sheet":"F2","index":4,"n_rows":79,"n_cols":26,"rows_kept":79,"cut":false,"hidden":false,"merged":[[26,1,26,7],[26,10,26,16],[26,19,26,25],[3,2,3,7],[5,2,5,7],[7,2,7,7],[9,2,9,3],[12,1,12,7],[12,10,12,16],[12,19,12,25],[13,1,13,7],[13,10,13,16],[13,19,13,25],[14,1,14,2],[16,3,16,6],[35,1,35,7],[35,10,35,16],[35,19,35,25],[30,1,30,7],[30,10,30,16],[30,19,30,25],[63,1,63,7],[63,10,63,16],[63,19,63,25],[38,1,38,7],[38,10,38,16],[38,19,38,25],[56,1,56,7],[56,10,56,16],[56,19,56,25]]}
[]
[null,"Fornecedor de Milho"]
[]
[null,"Identificação do fornecedor:","Fornecedor Hipotético 2"]
[]
[null,"CNPJ/CPF:","00.000.000/0000-00"]
[]
[null,"Responsável pelo preenchimento:","GT ACV RenovaCalc"]
[]
[null,"Telefone :","(00) 0000-0000"]
[]
[]
[null,"Fornecedor",null,null,null,null,null,null,null,null,"Default - Milho",null,null,null,null,null,null,null,null,"Guarda dados de preenchimento"]
[null,"Informações gerais",null,null,null,null,null,null,null,null," Informações gerais",null,null,null,null,null,null,null,null,"Informações gerais"]
[null,"Houve supressão de vegetação nativa a partir de 26 de dezembro de 2017?",null,"Não"]
[]
[null,null,"Número de registro no CAR (ou número de protocolo)","UF-1302405-E6D3.395B.6D27.4F42.AE22.DD56.987C.DD52"]
[]
[null,null,"Situação do CAR","Ativo"]
[]
[null,null,"Sistema de plantio","Convencional"]
[null,null,"Área total",1,"ha"]
[]
[null,null,"Produção total (base úmida)",5.25262206186013,"t milho","Umidade",0.13]
[null,null,"Palha recolhida (base seca)",0,"t palha"]
[]
[null,"Tipo de preenchimento",null,null,null,null,null,null,null,null,"Tipo de preenchimento",null,null,null,null,null,null,null,null,"Tipo de preenchimento"]
[null,"Tipo de dados forneceidos pelo fornecedor:",null,null,null,null,null,null,null,null,null,null,"Padrão",null,null,null,null,null,null,null,null,"Primários"]
[null,{"$f":"V28","v":"Primários"}]
[]
[null,"Corretivos",null,null,null,null,null,null,null,null,"Corretivos",null,null,null,null,null,null,null,null,"Corretivos"]
[null,null,"Calcário calcítico",0,"kg/t milho",null,null,null,null,null,null,"Calcário calcítico",0,"kg/t milho",null,null,null,null,null,null,"Calcário calcítico",0,"kg/t milho"]
[null,null,"Calcário dolomítico",42.306912548649237,"kg/t milho",null,null,null,null,null,null,"Calcário dolomítico",105.8,"kg/t milho",null,null,null,null,null,null,"Calcário dolomítico",105.8,"kg/t milho"]
[null,null,"Gesso",0,"kg/t milho",null,null,null,null,null,null,"Gesso",0,"kg/t milho",null,null,null,null,null,null,"Gesso",0,"kg/t milho"]
[]
[null,"Sementes",null,null,null,null,null,null,null,null,"Sementes",null,null,null,null,null,null,null,null,"Sementes"]
[null,null,"Sementes",4.6433761724416271,"kg/t milho",null,null,null,null,null,null,"Sementes",11.6,"kg/t milho",null,null,null,null,null,null,"Sementes",11.6,"kg/t milho"]
[]
[null,"Fertilizantes Sintéticos",null,null,null,null,null,null,null,null,"Fertilizantes Sintéticos",null,null,null,null,null,null,null,null,"Fertilizantes Sintéticos"]
[null,null,"Ureia",12.572838281743252,"kg N/t milho",null,null,null,null,null,null,"Ureia",31.4,"kg N/t milho",null,null,null,null,null,null,"Ureia",31.4,"kg N/t milho"]
[null,null,"Fosfato Monoamônico (MAP)",0,"kg N/t milho",null,null,null,null,null,null,"Fosfato Monoamônico (MAP)",0,"kg N/t milho",null,null,null,null,null,null,"Fosfato Monoamônico (MAP)",0,"kg N/t milho"]
[null,null,"Fosfato Monoamônico (MAP)",0,"kg P₂O₅/t milho",null,null,null,null,null,null,"Fosfato Monoamônico (MAP)",0,"kg P₂O₅/t milho",null,null,null,null,null,null,"Fosfato Monoamônico (MAP)",0,"kg P₂O₅/t milho"]
[null,null,"Fosfato diamônico (DAP)",0,"kg N/t milho",null,null,null,null,null,null,"Fosfato diamônico (DAP)",0,"kg N/t milho",null,null,null,null,null,null,"Fosfato diamônico (DAP)",0,"kg N/t milho"]
[null,null,"Fosfato diamônico (DAP)",0,"kg P₂O₅/t milho",null,null,null,null,null,null,"Fosfato diamônico (DAP)",0,"kg P₂O₅/t milho",null,null,null,null,null,null,"Fosfato diamônico (DAP)",0,"kg P₂O₅/t milho"]
[null,null,"Nitrato de amônio",0,"kg N/t milho",null,null,null,null,null,null,"Nitrato de amônio",0,"kg N/t milho",null,null,null,null,null,null,"Nitrato de amônio",0,"kg N/t milho"]
[null,null,"Solução de nitrato de amônio e ureia (UAN)",0,"kg N/t milho",null,null,null,null,null,null,"Solução de nitrato de amônio e ureia (UAN)",0,"kg N/t milho",null,null,null,null,null,null,"Solução de nitrato de amônio e ureia (UAN)",0,"kg N/t milho"]
[null,null,"Amônia anidra",0,"kg N/t milho",null,null,null,null,null,null,"Amônia anidra",0,"kg N/t milho",null,null,null,null,null,null,"Amônia anidra",0,"kg N/t milho"]
[null,null,"Sulfato de amônio",0,"kg N/t milho",null,null,null,null,null,null,"Sulfato de amônio",0,"kg N/t milho",null,null,null,null,null,null,"Sulfato de amônio",0,"kg N/t milho"]
[null,null,"Nitrato de amônio e cálcio (CAN)",0,"kg N/t milho",null,null,null,null,null,null,"Nitrato de amônio e cálcio (CAN)",0,"kg N/t milho",null,null,null,null,null,null,"Nitrato de amônio e cálcio (CAN)",0,"kg N/t milho"]
[null,null,"Superfosfato simples (SSP)",10.914972489850966,"kg P₂O₅/t milho",null,null,null,null,null,null,"Superfosfato simples (SSP)",27.3,"kg P₂O₅/t milho",null,null,null,null,null,null,"Superfosfato simples (SSP)",27.3,"kg P₂O₅/t milho"]
[null,null,"Superfosfato triplo (TSP)",0,"kg P₂O₅/t milho",null,null,null,null,null,null,"Superfosfato triplo (TSP)",0,"kg P₂O₅/t milho",null,null,null,null,null,null,"Superfosfato triplo (TSP)",0,"kg P₂O₅/t milho"]
[null,null,"Cloreto de potássio (KCl)",11.208923042124352,"kg K₂O/t milho",null,null,null,null,null,null,"Cloreto de potássio (KCl)",28,"kg K₂O/t milho",null,null,null,null,null,null,"Cloreto de potássio (KCl)",28,"kg K₂O/t milho"]
[null,"Outros","especificar",0,"kg N/t milho",null,null,null,null,null,"Outros","especificar",0,"kg N/t milho",null,null,null,null,null,"Outros","especificar",0,"kg N/t milho"]
[null,"Outros","especificar",0,"kg P₂O₅/t milho",null,null,null,null,null,"Outros","especificar",0,"kg P₂O₅/t milho",null,null,null,null,null,"Outros","especificar",0,"kg P₂O₅/t milho"]
[null,"Outros","especificar",0,"kg K₂O/t milho",null,null,null,null,null,"Outros","especificar",0,"kg K₂O/t milho",null,null,null,null,null,"Outros","especificar",0,"kg K₂O/t milho"]
[]
[null,"Fertilizantes Orgânicos/Organominerais",null,null,null,null,null,null,null,null,"              Fertilizantes Orgânicos/Organominerais",null,null,null,null,null,null,null,null,"              Fertilizantes Orgânicos/Organominerais"]
[null,"Outros","especificar",0,"kg/t milho","Concentração de N",null,"g N/kg",null,null,"Outros","especificar",0,"kg/t milho","Concentração de N",null,"g N/kg",null,null,"Outros","especificar",0,"kg/t milho","Concentração de N",null,"g N/kg"]
[null,"Outros","especificar",0,"kg/t milho","Concentração de N",null,"g N/kg",null,null,"Outros","especificar",0,"kg/t milho","Concentração de N",null,"g N/kg",null,null,"Outros","especificar",0,"kg/t milho","Concentração de N",null,"g N/kg"]
[null,"Outros","especificar",0,"kg/t milho","Concentração de N",null,"g N/kg",null,null,"Outros","especificar",0,"kg/t milho","Concentração de N",null,"g N/kg",null,null,"Outros","especificar",0,"kg/t milho","Concentração de N",null,"g N/kg"]
[null,"Outros","especificar",0,"kg/t milho","Concentração de N",null,"g N/kg",null,null,"Outros","especificar",0,"kg/t milho","Concentração de N",null,"g N/kg",null,null,"Outros","especificar",0,"kg/t milho","Concentração de N",null,"g N/kg"]
[null,"Outros","especificar",0,"kg/t milho","Concentração de N",null,"g N/kg",null,null,"Outros","especificar",0,"kg/t milho","Concentração de N",null,"g N/kg",null,null,"Outros","especificar",0,"kg/t milho","Concentração de N",null,"g N/kg"]
[]
[null,"Combustíveis e eletricidade da rede",null,null,null,null,null,null,null,null,"              Combustíveis e eletricidade da rede",null,null,null,null,null,null,null,null,"              Combustíveis e eletricidade da rede"]
[null,null,"Diesel - B8",4.8,"L/t milho",null,null,null,null,null,null,"Diesel - B8",12,"L/t soja",null,null,null,null,null,null,"Diesel - B8",12,"L/t soja"]
[null,null,"Diesel - B10",0,"L/t milho",null,null,null,null,null,null,"Diesel - B10",0,"L/t soja",null,null,null,null,null,null,"Diesel - B10",0,"L/t soja"]
[null,null,"Diesel - BX",0,"L/t milho","Teor de biodiesel na mistura",0.11,null,null,null,null,"Diesel - BX",0,"L/t soja","Teor de biodiesel na mistura",0.11,null,null,null,null,"Diesel - BX",0,"L/t soja","Teor de biodiesel na mistura",0.11]
[null,null,"Diesel - B20",0,"L/t milho",null,null,null,null,null,null,"Diesel - B20",0,"L/t soja",null,null,null,null,null,null,"Diesel - B20",0,"L/t soja"]
[null,null,"Diesel - B30",0,"L/t milho",null,null,null,null,null,null,"Diesel - B30",0,"L/t soja",null,null,null,null,null,null,"Diesel - B30",0,"L/t soja"]
[null,null,"Biodiesel - B100",0,"L/t milho",null,null,null,null,null,null,"Biodiesel - B100",0,"L/t soja",null,null,null,null,null,null,"Biodiesel - B100",0,"L/t soja"]
[null,null,"Gasolina C",0,"L/t milho",null,null,null,null,null,null,"Gasolina C",0,"L/t soja",null,null,null,null,null,null,"Gasolina C",0,"L/t soja"]
[null,null,"Etanol hidratado",0,"L/t milho",null,null,null,null,null,null,"Etanol hidratado",0,"L/t soja",null,null,null,null,null,null,"Etanol hidratado",0,"L/t soja"]
[null,null,"Biometano de terceiros",0,"Nm³/t milho",null,null,null,null,null,null,"Biometano de terceiros",0,"Nm³/t soja",null,null,null,null,null,null,"Biometano de terceiros",0,"Nm³/t soja"]
[null,null,"Biometano próprio",0,"Nm³/t milho",null,null,null,null,null,null,"Biometano próprio",0,"Nm³/t soja",null,null,null,null,null,null,"Biometano próprio",0,"Nm³/t soja"]
[null,null,"Eletricidade da rede - mix médio",0,"kWh/t milho",null,null,null,null,null,null,"Eletricidade da rede - mix médio",0,"kWh/t soja",null,null,null,null,null,null,"Eletricidade da rede - mix médio",0,"kWh/t soja"]
[null,null,"Eletricidade - PCH",0,"kWh/t milho",null,null,null,null,null,null,"Eletricidade - PCH",0,"kWh/t soja",null,null,null,null,null,null,"Eletricidade - PCH",0,"kWh/t soja"]
[null,null,"Eletricidade - biomassa",0,"kWh/t milho",null,null,null,null,null,null,"Eletricidade - biomassa",0,"kWh/t soja",null,null,null,null,null,null,"Eletricidade - biomassa",0,"kWh/t soja"]
[null,null,"Eletricidade - eólica",0,"kWh/t milho",null,null,null,null,null,null,"Eletricidade - eólica",0,"kWh/t soja",null,null,null,null,null,null,"Eletricidade - eólica",0,"kWh/t soja"]
[null,null,"Eletricidade - solar",0,"kWh/t milho",null,null,null,null,null,null,"Eletricidade - solar",0,"kWh/t soja",null,null,null,null,null,null,"Eletricidade - solar",0,"kWh/t soja"]

{"sheet":"F3","index":5,"n_rows":79,"n_cols":26,"rows_kept":79,"cut":false,"hidden":false,"merged":[[26,1,26,7],[26,10,26,16],[26,19,26,25],[3,2,3,7],[5,2,5,7],[7,2,7,7],[9,2,9,3],[12,1,12,7],[12,10,12,16],[12,19,12,25],[13,1,13,7],[13,10,13,16],[13,19,13,25],[14,1,14,2],[16,3,16,6],[35,1,35,7],[35,10,35,16],[35,19,35,25],[30,1,30,7],[30,10,30,16],[30,19,30,25],[63,1,63,7],[63,10,63,16],[63,19,63,25],[38,1,38,7],[38,10,38,16],[38,19,38,25],[56,1,56,7],[56,10,56,16],[56,19,56,25]]}
[]
[null,"Fornecedor de Milho"]
[]
[null,"Identificação do fornecedor:","Fornecedor Hipotético 3"]
[]
[null,"CNPJ/CPF:","00.000.000/0000-00"]
[]
[null,"Responsável pelo preenchimento:","GT ACV RenovaCalc"]
[]
[null,"Telefone :","(00) 0000-0000"]
[]
[]
[null,"Fornecedor",null,null,null,null,null,null,null,null,"Default - Milho",null,null,null,null,null,null,null,null,"Guarda dados de preenchimento"]
[null,"Informações gerais",null,null,null,null,null,null,null,null," Informações gerais",null,null,null,null,null,null,null,null,"Informações gerais"]
[null,"Houve supressão de vegetação nativa a partir de 26 de dezembro de 2017?",null,"Não"]
[]
[null,null,"Número de registro no CAR (ou número de protocolo)","UF-1302405-E6D3.395B.6D27.4F42.AE22.DD56.987C.DD53"]
[]
[null,null,"Situação do CAR","Ativo"]
[]
[null,null,"Sistema de plantio","Convencional"]
[null,null,"Área total",1,"ha"]
[]
[null,null,"Produção total (base úmida)",5.25262206186013,"t milho","Umidade",0.13]
[null,null,"Palha recolhida (base seca)",0,"t palha"]
[]
[null,"Tipo de preenchimento",null,null,null,null,null,null,null,null,"Tipo de preenchimento",null,null,null,null,null,null,null,null,"Tipo de preenchimento"]
[null,"Tipo de dados forneceidos pelo fornecedor:",null,null,null,null,null,null,null,null,null,null,"Padrão",null,null,null,null,null,null,null,null,"Primários"]
[null,{"$f":"V28","v":"Primários"}]
[]
[null,"Corretivos",null,null,null,null,null,null,null,null,"Corretivos",null,null,null,null,null,null,null,null,"Corretivos"]
[null,null,"Calcário calcítico",0,"kg/t milho",null,null,null,null,null,null,"Calcário calcítico",0,"kg/t milho",null,null,null,null,null,null,"Calcário calcítico",0,"kg/t milho"]
[null,null,"Calcário dolomítico",42.306912548649237,"kg/t milho",null,null,null,null,null,null,"Calcário dolomítico",105.8,"kg/t milho",null,null,null,null,null,null,"Calcário dolomítico",105.8,"kg/t milho"]
[null,null,"Gesso",0,"kg/t milho",null,null,null,null,null,null,"Gesso",0,"kg/t milho",null,null,null,null,null,null,"Gesso",0,"kg/t milho"]
[]
[null,"Sementes",null,null,null,null,null,null,null,null,"Sementes",null,null,null,null,null,null,null,null,"Sementes"]
[null,null,"Sementes",4.6433761724416271,"kg/t milho",null,null,null,null,null,null,"Sementes",11.6,"kg/t milho",null,null,null,null,null,null,"Sementes",11.6,"kg/t milho"]
[]
[null,"Fertilizantes Sintéticos",null,null,null,null,null,null,null,null,"Fertilizantes Sintéticos",null,null,null,null,null,null,null,null,"Fertilizantes Sintéticos"]
[null,null,"Ureia",12.572838281743252,"kg N/t milho",null,null,null,null,null,null,"Ureia",31.4,"kg N/t milho",null,null,null,null,null,null,"Ureia",31.4,"kg N/t milho"]
[null,null,"Fosfato Monoamônico (MAP)",0,"kg N/t milho",null,null,null,null,null,null,"Fosfato Monoamônico (MAP)",0,"kg N/t milho",null,null,null,null,null,null,"Fosfato Monoamônico (MAP)",0,"kg N/t milho"]
[null,null,"Fosfato Monoamônico (MAP)",0,"kg P₂O₅/t milho",null,null,null,null,null,null,"Fosfato Monoamônico (MAP)",0,"kg P₂O₅/t milho",null,null,null,null,null,null,"Fosfato Monoamônico (MAP)",0,"kg P₂O₅/t milho"]
[null,null,"Fosfato diamônico (DAP)",0,"kg N/t milho",null,null,null,null,null,null,"Fosfato diamônico (DAP)",0,"kg N/t milho",null,null,null,null,null,null,"Fosfato diamônico (DAP)",0,"kg N/t milho"]
[null,null,"Fosfato diamônico (DAP)",0,"kg P₂O₅/t milho",null,null,null,null,null,null,"Fosfato diamônico (DAP)",0,"kg P₂O₅/t milho",null,null,null,null,null,null,"Fosfato diamônico (DAP)",0,"kg P₂O₅/t milho"]
[null,null,"Nitrato de amônio",0,"kg N/t milho",null,null,null,null,null,null,"Nitrato de amônio",0,"kg N/t milho",null,null,null,null,null,null,"Nitrato de amônio",0,"kg N/t milho"]
[null,null,"Solução de nitrato de amônio e ureia (UAN)",0,"kg N/t milho",null,null,null,null,null,null,"Solução de nitrato de amônio e ureia (UAN)",0,"kg N/t milho",null,null,null,null,null,null,"Solução de nitrato de amônio e ureia (UAN)",0,"kg N/t milho"]
[null,null,"Amônia anidra",0,"kg N/t milho",null,null,null,null,null,null,"Amônia anidra",0,"kg N/t milho",null,null,null,null,null,null,"Amônia anidra",0,"kg N/t milho"]
[null,null,"Sulfato de amônio",0,"kg N/t milho",null,null,null,null,null,null,"Sulfato de amônio",0,"kg N/t milho",null,null,null,null,null,null,"Sulfato de amônio",0,"kg N/t milho"]
[null,null,"Nitrato de amônio e cálcio (CAN)",0,"kg N/t milho",null,null,null,null,null,null,"Nitrato de amônio e cálcio (CAN)",0,"kg N/t milho",null,null,null,null,null,null,"Nitrato de amônio e cálcio (CAN)",0,"kg N/t milho"]
[null,null,"Superfosfato simples (SSP)",10.914972489850966,"kg P₂O₅/t milho",null,null,null,null,null,null,"Superfosfato simples (SSP)",27.3,"kg P₂O₅/t milho",null,null,null,null,null,null,"Superfosfato simples (SSP)",27.3,"kg P₂O₅/t milho"]
[null,null,"Superfosfato triplo (TSP)",0,"kg P₂O₅/t milho",null,null,null,null,null,null,"Superfosfato triplo (TSP)",0,"kg P₂O₅/t milho",null,null,null,null,null,null,"Superfosfato triplo (TSP)",0,"kg P₂O₅/t milho"]
[null,null,"Cloreto de potássio (KCl)",11.208923042124352,"kg K₂O/t milho",null,null,null,null,null,null,"Cloreto de potássio (KCl)",28,"kg K₂O/t milho",null,null,null,null,null,null,"Cloreto de potássio (KCl)",28,"kg K₂O/t milho"]
[null,"Outros","especificar",0,"kg N/t milho",null,null,null,null,null,"Outros","especificar",0,"kg N/t milho",null,null,null,null,null,"Outros","especificar",0,"kg N/t milho"]
[null,"Outros","especificar",0,"kg P₂O₅/t milho",null,null,null,null,null,"Outros","especificar",0,"kg P₂O₅/t milho",null,null,null,null,null,"Outros","especificar",0,"kg P₂O₅/t milho"]
[null,"Outros","especificar",0,"kg K₂O/t milho",null,null,null,null,null,"Outros","especificar",0,"kg K₂O/t milho",null,null,null,null,null,"Outros","especificar",0,"kg K₂O/t milho"]
[]
[null,"Fertilizantes Orgânicos/Organominerais",null,null,null,null,null,null,null,null,"              Fertilizantes Orgânicos/Organominerais",null,null,null,null,null,null,null,null,"              Fertilizantes Orgânicos/Organominerais"]
[null,"Outros","especificar",0,"kg/t milho","Concentração de N",null,"g N/kg",null,null,"Outros","especificar",0,"kg/t milho","Concentração de N",null,"g N/kg",null,null,"Outros","especificar",0,"kg/t milho","Concentração de N",null,"g N/kg"]
[null,"Outros","especificar",0,"kg/t milho","Concentração de N",null,"g N/kg",null,null,"Outros","especificar",0,"kg/t milho","Concentração de N",null,"g N/kg",null,null,"Outros","especificar",0,"kg/t milho","Concentração de N",null,"g N/kg"]
[null,"Outros","especificar",0,"kg/t milho","Concentração de N",null,"g N/kg",null,null,"Outros","especificar",0,"kg/t milho","Concentração de N",null,"g N/kg",null,null,"Outros","especificar",0,"kg/t milho","Concentração de N",null,"g N/kg"]
[null,"Outros","especificar",0,"kg/t milho","Concentração de N",null,"g N/kg",null,null,"Outros","especificar",0,"kg/t milho","Concentração de N",null,"g N/kg",null,null,"Outros","especificar",0,"kg/t milho","Concentração de N",null,"g N/kg"]
[null,"Outros","especificar",0,"kg/t milho","Concentração de N",null,"g N/kg",null,null,"Outros","especificar",0,"kg/t milho","Concentração de N",null,"g N/kg",null,null,"Outros","especificar",0,"kg/t milho","Concentração de N",null,"g N/kg"]
[]
[null,"Combustíveis e eletricidade da rede",null,null,null,null,null,null,null,null,"              Combustíveis e eletricidade da rede",null,null,null,null,null,null,null,null,"              Combustíveis e eletricidade da rede"]
[null,null,"Diesel - B8",4.8,"L/t milho",null,null,null,null,null,null,"Diesel - B8",12,"L/t soja",null,null,null,null,null,null,"Diesel - B8",12,"L/t soja"]
[null,null,"Diesel - B10",0,"L/t milho",null,null,null,null,null,null,"Diesel - B10",0,"L/t soja",null,null,null,null,null,null,"Diesel - B10",0,"L/t soja"]
[null,null,"Diesel - BX",0,"L/t milho","Teor de biodiesel na mistura",0.11,null,null,null,null,"Diesel - BX",0,"L/t soja","Teor de biodiesel na mistura",0.11,null,null,null,null,"Diesel - BX",0,"L/t soja","Teor de biodiesel na mistura",0.11]
[null,null,"Diesel - B20",0,"L/t milho",null,null,null,null,null,null,"Diesel - B20",0,"L/t soja",null,null,null,null,null,null,"Diesel - B20",0,"L/t soja"]
[null,null,"Diesel - B30",0,"L/t milho",null,null,null,null,null,null,"Diesel - B30",0,"L/t soja",null,null,null,null,null,null,"Diesel - B30",0,"L/t soja"]
[null,null,"Biodiesel - B100",0,"L/t milho",null,null,null,null,null,null,"Biodiesel - B100",0,"L/t soja",null,null,null,null,null,null,"Biodiesel - B100",0,"L/t soja"]
[null,null,"Gasolina C",0,"L/t milho",null,null,null,null,null,null,"Gasolina C",0,"L/t soja",null,null,null,null,null,null,"Gasolina C",0,"L/t soja"]
[null,null,"Etanol hidratado",0,"L/t milho",null,null,null,null,null,null,"Etanol hidratado",0,"L/t soja",null,null,null,null,null,null,"Etanol hidratado",0,"L/t soja"]
[null,null,"Biometano de terceiros",0,"Nm³/t milho",null,null,null,null,null,null,"Biometano de terceiros",0,"Nm³/t soja",null,null,null,null,null,null,"Biometano de terceiros",0,"Nm³/t soja"]
[null,null,"Biometano próprio",0,"Nm³/t milho",null,null,null,null,null,null,"Biometano próprio",0,"Nm³/t soja",null,null,null,null,null,null,"Biometano próprio",0,"Nm³/t soja"]
[null,null,"Eletricidade da rede - mix médio",0,"kWh/t milho",null,null,null,null,null,null,"Eletricidade da rede - mix médio",0,"kWh/t soja",null,null,null,null,null,null,"Eletricidade da rede - mix médio",0,"kWh/t soja"]
[null,null,"Eletricidade - PCH",0,"kWh/t milho",null,null,null,null,null,null,"Eletricidade - PCH",0,"kWh/t soja",null,null,null,null,null,null,"Eletricidade - PCH",0,"kWh/t soja"]
[null,null,"Eletricidade - biomassa",0,"kWh/t milho",null,null,null,null,null,null,"Eletricidade - biomassa",0,"kWh/t soja",null,null,null,null,null,null,"Eletricidade - biomassa",0,"kWh/t soja"]
[null,null,"Eletricidade - eólica",0,"kWh/t milho",null,null,null,null,null,null,"Eletricidade - eólica",0,"kWh/t soja",null,null,null,null,null,null,"Eletricidade - eólica",0,"kWh/t soja"]
[null,null,"Eletricidade - solar",0,"kWh/t milho",null,null,null,null,null,null,"Eletricidade - solar",0,"kWh/t soja",null,null,null,null,null,null,"Eletricidade - solar",0,"kWh/t soja"]

{"sheet":"F4","index":6,"n_rows":79,"n_cols":26,"rows_kept":79,"cut":false,"hidden":false,"merged":[[26,1,26,7],[26,10,26,16],[26,19,26,25],[3,2,3,7],[5,2,5,7],[7,2,7,7],[9,2,9,3],[12,1,12,7],[12,10,12,16],[12,19,12,25],[13,1,13,7],[13,10,13,16],[13,19,13,25],[14,1,14,2],[16,3,16,6],[35,1,35,7],[35,10,35,16],[35,19,35,25],[30,1,30,7],[30,10,30,16],[30,19,30,25],[63,1,63,7],[63,10,63,16],[63,19,63,25],[38,1,38,7],[38,10,38,16],[38,19,38,25],[56,1,56,7],[56,10,56,16],[56,19,56,25]]}
[]
[null,"Fornecedor de Milho"]
[]
[null,"Identificação do fornecedor:","Fornecedor Hipotético 4"]
[]
[null,"CNPJ/CPF:","00.000.000/0000-00"]
[]
[null,"Responsável pelo preenchimento:","GT ACV RenovaCalc"]
[]
[null,"Telefone :","(00) 0000-0000"]
[]
[]
[null,"Fornecedor",null,null,null,null,null,null,null,null,"Default - Milho",null,null,null,null,null,null,null,null,"Guarda dados de preenchimento"]
[null,"Informações gerais",null,null,null,null,null,null,null,null," Informações gerais",null,null,null,null,null,null,null,null,"Informações gerais"]
[null,"Houve supressão de vegetação nativa a partir de 26 de dezembro de 2017?",null,"Não"]
[]
[null,null,"Número de registro no CAR (ou número de protocolo)","UF-1302405-E6D3.395B.6D27.4F42.AE22.DD56.987C.DD54"]
[]
[null,null,"Situação do CAR","Ativo"]
[]
[null,null,"Sistema de plantio","Convencional"]
[null,null,"Área total",1,"ha"]
[]
[null,null,"Produção total (base úmida)",5.25262206186013,"t milho","Umidade",0.13]
[null,null,"Palha recolhida (base seca)",0,"t palha"]
[]
[null,"Tipo de preenchimento",null,null,null,null,null,null,null,null,"Tipo de preenchimento",null,null,null,null,null,null,null,null,"Tipo de preenchimento"]
[null,"Tipo de dados forneceidos pelo fornecedor:",null,null,null,null,null,null,null,null,null,null,"Padrão",null,null,null,null,null,null,null,null,"Primários"]
[null,{"$f":"V28","v":"Primários"}]
[]
[null,"Corretivos",null,null,null,null,null,null,null,null,"Corretivos",null,null,null,null,null,null,null,null,"Corretivos"]
[null,null,"Calcário calcítico",0,"kg/t milho",null,null,null,null,null,null,"Calcário calcítico",0,"kg/t milho",null,null,null,null,null,null,"Calcário calcítico",0,"kg/t milho"]
[null,null,"Calcário dolomítico",42.306912548649237,"kg/t milho",null,null,null,null,null,null,"Calcário dolomítico",105.8,"kg/t milho",null,null,null,null,null,null,"Calcário dolomítico",105.8,"kg/t milho"]
[null,null,"Gesso",0,"kg/t milho",null,null,null,null,null,null,"Gesso",0,"kg/t milho",null,null,null,null,null,null,"Gesso",0,"kg/t milho"]
[]
[null,"Sementes",null,null,null,null,null,null,null,null,"Sementes",null,null,null,null,null,null,null,null,"Sementes"]
[null,null,"Sementes",4.6433761724416271,"kg/t milho",null,null,null,null,null,null,"Sementes",11.6,"kg/t milho",null,null,null,null,null,null,"Sementes",11.6,"kg/t milho"]
[]
[null,"Fertilizantes Sintéticos",null,null,null,null,null,null,null,null,"Fertilizantes Sintéticos",null,null,null,null,null,null,null,null,"Fertilizantes Sintéticos"]
[null,null,"Ureia",12.572838281743252,"kg N/t milho",null,null,null,null,null,null,"Ureia",31.4,"kg N/t milho",null,null,null,null,null,null,"Ureia",31.4,"kg N/t milho"]
[null,null,"Fosfato Monoamônico (MAP)",0,"kg N/t milho",null,null,null,null,null,null,"Fosfato Monoamônico (MAP)",0,"kg N/t milho",null,null,null,null,null,null,"Fosfato Monoamônico (MAP)",0,"kg N/t milho"]
[null,null,"Fosfato Monoamônico (MAP)",0,"kg P₂O₅/t milho",null,null,null,null,null,null,"Fosfato Monoamônico (MAP)",0,"kg P₂O₅/t milho",null,null,null,null,null,null,"Fosfato Monoamônico (MAP)",0,"kg P₂O₅/t milho"]
[null,null,"Fosfato diamônico (DAP)",0,"kg N/t milho",null,null,null,null,null,null,"Fosfato diamônico (DAP)",0,"kg N/t milho",null,null,null,null,null,null,"Fosfato diamônico (DAP)",0,"kg N/t milho"]
[null,null,"Fosfato diamônico (DAP)",0,"kg P₂O₅/t milho",null,null,null,null,null,null,"Fosfato diamônico (DAP)",0,"kg P₂O₅/t milho",null,null,null,null,null,null,"Fosfato diamônico (DAP)",0,"kg P₂O₅/t milho"]
[null,null,"Nitrato de amônio",0,"kg N/t milho",null,null,null,null,null,null,"Nitrato de amônio",0,"kg N/t milho",null,null,null,null,null,null,"Nitrato de amônio",0,"kg N/t milho"]
[null,null,"Solução de nitrato de amônio e ureia (UAN)",0,"kg N/t milho",null,null,null,null,null,null,"Solução de nitrato de amônio e ureia (UAN)",0,"kg N/t milho",null,null,null,null,null,null,"Solução de nitrato de amônio e ureia (UAN)",0,"kg N/t milho"]
[null,null,"Amônia anidra",0,"kg N/t milho",null,null,null,null,null,null,"Amônia anidra",0,"kg N/t milho",null,null,null,null,null,null,"Amônia anidra",0,"kg N/t milho"]
[null,null,"Sulfato de amônio",0,"kg N/t milho",null,null,null,null,null,null,"Sulfato de amônio",0,"kg N/t milho",null,null,null,null,null,null,"Sulfato de amônio",0,"kg N/t milho"]
[null,null,"Nitrato de amônio e cálcio (CAN)",0,"kg N/t milho",null,null,null,null,null,null,"Nitrato de amônio e cálcio (CAN)",0,"kg N/t milho",null,null,null,null,null,null,"Nitrato de amônio e cálcio (CAN)",0,"kg N/t milho"]
[null,null,"Superfosfato simples (SSP)",10.914972489850966,"kg P₂O₅/t milho",null,null,null,null,null,null,"Superfosfato simples (SSP)",27.3,"kg P₂O₅/t milho",null,null,null,null,null,null,"Superfosfato simples (SSP)",27.3,"kg P₂O₅/t milho"]
[null,null,"Superfosfato triplo (TSP)",0,"kg P₂O₅/t milho",null,null,null,null,null,null,"Superfosfato triplo (TSP)",0,"kg P₂O₅/t milho",null,null,null,null,null,null,"Superfosfato triplo (TSP)",0,"kg P₂O₅/t milho"]
[null,null,"Cloreto de potássio (KCl)",11.208923042124352,"kg K₂O/t milho",null,null,null,null,null,null,"Cloreto de potássio (KCl)",28,"kg K₂O/t milho",null,null,null,null,null,null,"Cloreto de potássio (KCl)",28,"kg K₂O/t milho"]
[null,"Outros","especificar",0,"kg N/t milho",null,null,null,null,null,"Outros","especificar",0,"kg N/t milho",null,null,null,null,null,"Outros","especificar",0,"kg N/t milho"]
[null,"Outros","especificar",0,"kg P₂O₅/t milho",null,null,null,null,null,"Outros","especificar",0,"kg P₂O₅/t milho",null,null,null,null,null,"Outros","especificar",0,"kg P₂O₅/t milho"]
[null,"Outros","especificar",0,"kg K₂O/t milho",null,null,null,null,null,"Outros","especificar",0,"kg K₂O/t milho",null,null,null,null,null,"Outros","especificar",0,"kg K₂O/t milho"]
[]
[null,"Fertilizantes Orgânicos/Organominerais",null,null,null,null,null,null,null,null,"              Fertilizantes Orgânicos/Organominerais",null,null,null,null,null,null,null,null,"              Fertilizantes Orgânicos/Organominerais"]
[null,"Outros","especificar",0,"kg/t milho","Concentração de N",null,"g N/kg",null,null,"Outros","especificar",0,"kg/t milho","Concentração de N",null,"g N/kg",null,null,"Outros","especificar",0,"kg/t milho","Concentração de N",null,"g N/kg"]
[null,"Outros","especificar",0,"kg/t milho","Concentração de N",null,"g N/kg",null,null,"Outros","especificar",0,"kg/t milho","Concentração de N",null,"g N/kg",null,null,"Outros","especificar",0,"kg/t milho","Concentração de N",null,"g N/kg"]
[null,"Outros","especificar",0,"kg/t milho","Concentração de N",null,"g N/kg",null,null,"Outros","especificar",0,"kg/t milho","Concentração de N",null,"g N/kg",null,null,"Outros","especificar",0,"kg/t milho","Concentração de N",null,"g N/kg"]
[null,"Outros","especificar",0,"kg/t milho","Concentração de N",null,"g N/kg",null,null,"Outros","especificar",0,"kg/t milho","Concentração de N",null,"g N/kg",null,null,"Outros","especificar",0,"kg/t milho","Concentração de N",null,"g N/kg"]
[null,"Outros","especificar",0,"kg/t milho","Concentração de N",null,"g N/kg",null,null,"Outros","especificar",0,"kg/t milho","Concentração de N",null,"g N/kg",null,null,"Outros","especificar",0,"kg/t milho","Concentração de N",null,"g N/kg"]
[]
[null,"Combustíveis e eletricidade da rede",null,null,null,null,null,null,null,null,"              Combustíveis e eletricidade da rede",null,null,null,null,null,null,null,null,"              Combustíveis e eletricidade da rede"]
[null,null,"Diesel - B8",4.8,"L/t milho",null,null,null,null,null,null,"Diesel - B8",12,"L/t soja",null,null,null,null,null,null,"Diesel - B8",12,"L/t soja"]
[null,null,"Diesel - B10",0,"L/t milho",null,null,null,null,null,null,"Diesel - B10",0,"L/t soja",null,null,null,null,null,null,"Diesel - B10",0,"L/t soja"]
[null,null,"Diesel - BX",0,"L/t milho","Teor de biodiesel na mistura",0.11,null,null,null,null,"Diesel - BX",0,"L/t soja","Teor de biodiesel na mistura",0.11,null,null,null,null,"Diesel - BX",0,"L/t soja","Teor de biodiesel na mistura",0.11]
[null,null,"Diesel - B20",0,"L/t milho",null,null,null,null,null,null,"Diesel - B20",0,"L/t soja",null,null,null,null,null,null,"Diesel - B20",0,"L/t soja"]
[null,null,"Diesel - B30",0,"L/t milho",null,null,null,null,null,null,"Diesel - B30",0,"L/t soja",null,null,null,null,null,null,"Diesel - B30",0,"L/t soja"]
[null,null,"Biodiesel - B100",0,"L/t milho",null,null,null,null,null,null,"Biodiesel - B100",0,"L/t soja",null,null,null,null,null,null,"Biodiesel - B100",0,"L/t soja"]
[null,null,"Gasolina C",0,"L/t milho",null,null,null,null,null,null,"Gasolina C",0,"L/t soja",null,null,null,null,null,null,"Gasolina C",0,"L/t soja"]
[null,null,"Etanol hidratado",0,"L/t milho",null,null,null,null,null,null,"Etanol hidratado",0,"L/t soja",null,null,null,null,null,null,"Etanol hidratado",0,"L/t soja"]
[null,null,"Biometano de terceiros",0,"Nm³/t milho",null,null,null,null,null,null,"Biometano de terceiros",0,"Nm³/t soja",null,null,null,null,null,null,"Biometano de terceiros",0,"Nm³/t soja"]
[null,null,"Biometano próprio",0,"Nm³/t milho",null,null,null,null,null,null,"Biometano próprio",0,"Nm³/t soja",null,null,null,null,null,null,"Biometano próprio",0,"Nm³/t soja"]
[null,null,"Eletricidade da rede - mix médio",0,"kWh/t milho",null,null,null,null,null,null,"Eletricidade da rede - mix médio",0,"kWh/t soja",null,null,null,null,null,null,"Eletricidade da rede - mix médio",0,"kWh/t soja"]
[null,null,"Eletricidade - PCH",0,"kWh/t milho",null,null,null,null,null,null,"Eletricidade - PCH",0,"kWh/t soja",null,null,null,null,null,null,"Eletricidade - PCH",0,"kWh/t soja"]
[null,null,"Eletricidade - biomassa",0,"kWh/t milho",null,null,null,null,null,null,"Eletricidade - biomassa",0,"kWh/t soja",null,null,null,null,null,null,"Eletricidade - biomassa",0,"kWh/t soja"]
[null,null,"Eletricidade - eólica",0,"kWh/t milho",null,null,null,null,null,null,"Eletricidade - eólica",0,"kWh/t soja",null,null,null,null,null,null,"Eletricidade - eólica",0,"kWh/t soja"]
[null,null,"Eletricidade - solar",0,"kWh/t milho",null,null,null,null,null,null,"Eletricidade - solar",0,"kWh/t soja",null,null,null,null,null,null,"Eletricidade - solar",0,"kWh/t soja"]

{"sheet":"F5","index":7,"n_rows":79,"n_cols":26,"rows_kept":79,"cut":false,"hidden":false,"merged":[[26,1,26,7],[26,10,26,16],[26,19,26,25],[3,2,3,7],[5,2,5,7],[7,2,7,7],[9,2,9,3],[12,1,12,7],[12,10,12,16],[12,19,12,25],[13,1,13,7],[13,10,13,16],[13,19,13,25],[14,1,14,2],[16,3,16,6],[35,1,35,7],[35,10,35,16],[35,19,35,25],[30,1,30,7],[30,10,30,16],[30,19,30,25],[63,1,63,7],[63,10,63,16],[63,19,63,25],[38,1,38,7],[38,10,38,16],[38,19,38,25],[56,1,56,7],[56,10,56,16],[56,19,56,25]]}
[]
[null,"Fornecedor de Milho"]
[]
[null,"Identificação do fornecedor:","Fornecedor Hipotético 5"]
[]
[null,"CNPJ/CPF:","00.000.000/0000-00"]
[]
[null,"Responsável pelo preenchimento:","GT ACV RenovaCalc"]
[]
[null,"Telefone :","(00) 0000-0000"]
[]
[]
[null,"Fornecedor",null,null,null,null,null,null,null,null,"Default - Milho",null,null,null,null,null,null,null,null,"Guarda dados de preenchimento"]
[null,"Informações gerais",null,null,null,null,null,null,null,null," Informações gerais",null,null,null,null,null,null,null,null,"Informações gerais"]
[null,"Houve supressão de vegetação nativa a partir de 26 de dezembro de 2017?",null,"Não"]
[]
[null,null,"Número de registro no CAR (ou número de protocolo)","UF-1302405-E6D3.395B.6D27.4F42.AE22.DD56.987C.DD55"]
[]
[null,null,"Situação do CAR","Ativo"]
[]
[null,null,"Sistema de plantio","Convencional"]
[null,null,"Área total",1,"ha"]
[]
[null,null,"Produção total (base úmida)",5.25262206186013,"t milho","Umidade",0.13]
[null,null,"Palha recolhida (base seca)",0,"t palha"]
[]
[null,"Tipo de preenchimento",null,null,null,null,null,null,null,null,"Tipo de preenchimento",null,null,null,null,null,null,null,null,"Tipo de preenchimento"]
[null,"Tipo de dados forneceidos pelo fornecedor:",null,null,null,null,null,null,null,null,null,null,"Padrão",null,null,null,null,null,null,null,null,"Primários"]
[null,{"$f":"V28","v":"Primários"}]
[]
[null,"Corretivos",null,null,null,null,null,null,null,null,"Corretivos",null,null,null,null,null,null,null,null,"Corretivos"]
[null,null,"Calcário calcítico",0,"kg/t milho",null,null,null,null,null,null,"Calcário calcítico",0,"kg/t milho",null,null,null,null,null,null,"Calcário calcítico",0,"kg/t milho"]
[null,null,"Calcário dolomítico",42.306912548649237,"kg/t milho",null,null,null,null,null,null,"Calcário dolomítico",105.8,"kg/t milho",null,null,null,null,null,null,"Calcário dolomítico",105.8,"kg/t milho"]
[null,null,"Gesso",0,"kg/t milho",null,null,null,null,null,null,"Gesso",0,"kg/t milho",null,null,null,null,null,null,"Gesso",0,"kg/t milho"]
[]
[null,"Sementes",null,null,null,null,null,null,null,null,"Sementes",null,null,null,null,null,null,null,null,"Sementes"]
[null,null,"Sementes",4.6433761724416271,"kg/t milho",null,null,null,null,null,null,"Sementes",11.6,"kg/t milho",null,null,null,null,null,null,"Sementes",11.6,"kg/t milho"]
[]
[null,"Fertilizantes Sintéticos",null,null,null,null,null,null,null,null,"Fertilizantes Sintéticos",null,null,null,null,null,null,null,null,"Fertilizantes Sintéticos"]
[null,null,"Ureia",12.572838281743252,"kg N/t milho",null,null,null,null,null,null,"Ureia",31.4,"kg N/t milho",null,null,null,null,null,null,"Ureia",31.4,"kg N/t milho"]
[null,null,"Fosfato Monoamônico (MAP)",0,"kg N/t milho",null,null,null,null,null,null,"Fosfato Monoamônico (MAP)",0,"kg N/t milho",null,null,null,null,null,null,"Fosfato Monoamônico (MAP)",0,"kg N/t milho"]
[null,null,"Fosfato Monoamônico (MAP)",0,"kg P₂O₅/t milho",null,null,null,null,null,null,"Fosfato Monoamônico (MAP)",0,"kg P₂O₅/t milho",null,null,null,null,null,null,"Fosfato Monoamônico (MAP)",0,"kg P₂O₅/t milho"]
[null,null,"Fosfato diamônico (DAP)",0,"kg N/t milho",null,null,null,null,null,null,"Fosfato diamônico (DAP)",0,"kg N/t milho",null,null,null,null,null,null,"Fosfato diamônico (DAP)",0,"kg N/t milho"]
[null,null,"Fosfato diamônico (DAP)",0,"kg P₂O₅/t milho",null,null,null,null,null,null,"Fosfato diamônico (DAP)",0,"kg P₂O₅/t milho",null,null,null,null,null,null,"Fosfato diamônico (DAP)",0,"kg P₂O₅/t milho"]
[null,null,"Nitrato de amônio",0,"kg N/t milho",null,null,null,null,null,null,"Nitrato de amônio",0,"kg N/t milho",null,null,null,null,null,null,"Nitrato de amônio",0,"kg N/t milho"]
[null,null,"Solução de nitrato de amônio e ureia (UAN)",0,"kg N/t milho",null,null,null,null,null,null,"Solução de nitrato de amônio e ureia (UAN)",0,"kg N/t milho",null,null,null,null,null,null,"Solução de nitrato de amônio e ureia (UAN)",0,"kg N/t milho"]
[null,null,"Amônia anidra",0,"kg N/t milho",null,null,null,null,null,null,"Amônia anidra",0,"kg N/t milho",null,null,null,null,null,null,"Amônia anidra",0,"kg N/t milho"]
[null,null,"Sulfato de amônio",0,"kg N/t milho",null,null,null,null,null,null,"Sulfato de amônio",0,"kg N/t milho",null,null,null,null,null,null,"Sulfato de amônio",0,"kg N/t milho"]
[null,null,"Nitrato de amônio e cálcio (CAN)",0,"kg N/t milho",null,null,null,null,null,null,"Nitrato de amônio e cálcio (CAN)",0,"kg N/t milho",null,null,null,null,null,null,"Nitrato de amônio e cálcio (CAN)",0,"kg N/t milho"]
[null,null,"Superfosfato simples (SSP)",10.914972489850966,"kg P₂O₅/t milho",null,null,null,null,null,null,"Superfosfato simples (SSP)",27.3,"kg P₂O₅/t milho",null,null,null,null,null,null,"Superfosfato simples (SSP)",27.3,"kg P₂O₅/t milho"]
[null,null,"Superfosfato triplo (TSP)",0,"kg P₂O₅/t milho",null,null,null,null,null,null,"Superfosfato triplo (TSP)",0,"kg P₂O₅/t milho",null,null,null,null,null,null,"Superfosfato triplo (TSP)",0,"kg P₂O₅/t milho"]
[null,null,"Cloreto de potássio (KCl)",11.208923042124352,"kg K₂O/t milho",null,null,null,null,null,null,"Cloreto de potássio (KCl)",28,"kg K₂O/t milho",null,null,null,null,null,null,"Cloreto de potássio (KCl)",28,"kg K₂O/t milho"]
[null,"Outros","especificar",0,"kg N/t milho",null,null,null,null,null,"Outros","especificar",0,"kg N/t milho",null,null,null,null,null,"Outros","especificar",0,"kg N/t milho"]
[null,"Outros","especificar",0,"kg P₂O₅/t milho",null,null,null,null,null,"Outros","especificar",0,"kg P₂O₅/t milho",null,null,null,null,null,"Outros","especificar",0,"kg P₂O₅/t milho"]
[null,"Outros","especificar",0,"kg K₂O/t milho",null,null,null,null,null,"Outros","especificar",0,"kg K₂O/t milho",null,null,null,null,null,"Outros","especificar",0,"kg K₂O/t milho"]
[]
[null,"Fertilizantes Orgânicos/Organominerais",null,null,null,null,null,null,null,null,"              Fertilizantes Orgânicos/Organominerais",null,null,null,null,null,null,null,null,"              Fertilizantes Orgânicos/Organominerais"]
[null,"Outros","especificar",0,"kg/t milho","Concentração de N",null,"g N/kg",null,null,"Outros","especificar",0,"kg/t milho","Concentração de N",null,"g N/kg",null,null,"Outros","especificar",0,"kg/t milho","Concentração de N",null,"g N/kg"]
[null,"Outros","especificar",0,"kg/t milho","Concentração de N",null,"g N/kg",null,null,"Outros","especificar",0,"kg/t milho","Concentração de N",null,"g N/kg",null,null,"Outros","especificar",0,"kg/t milho","Concentração de N",null,"g N/kg"]
[null,"Outros","especificar",0,"kg/t milho","Concentração de N",null,"g N/kg",null,null,"Outros","especificar",0,"kg/t milho","Concentração de N",null,"g N/kg",null,null,"Outros","especificar",0,"kg/t milho","Concentração de N",null,"g N/kg"]
[null,"Outros","especificar",0,"kg/t milho","Concentração de N",null,"g N/kg",null,null,"Outros","especificar",0,"kg/t milho","Concentração de N",null,"g N/kg",null,null,"Outros","especificar",0,"kg/t milho","Concentração de N",null,"g N/kg"]
[null,"Outros","especificar",0,"kg/t milho","Concentração de N",null,"g N/kg",null,null,"Outros","especificar",0,"kg/t milho","Concentração de N",null,"g N/kg",null,null,"Outros","especificar",0,"kg/t milho","Concentração de N",null,"g N/kg"]
[]
[null,"Combustíveis e eletricidade da rede",null,null,null,null,null,null,null,null,"              Combustíveis e eletricidade da rede",null,null,null,null,null,null,null,null,"              Combustíveis e eletricidade da rede"]
[null,null,"Diesel - B8",4.8,"L/t milho",null,null,null,null,null,null,"Diesel - B8",12,"L/t soja",null,null,null,null,null,null,"Diesel - B8",12,"L/t soja"]
[null,null,"Diesel - B10",0,"L/t milho",null,null,null,null,null,null,"Diesel - B10",0,"L/t soja",null,null,null,null,null,null,"Diesel - B10",0,"L/t soja"]
[null,null,"Diesel - BX",0,"L/t milho","Teor de biodiesel na mistura",0.11,null,null,null,null,"Diesel - BX",0,"L/t soja","Teor de biodiesel na mistura",0.11,null,null,null,null,"Diesel - BX",0,"L/t soja","Teor de biodiesel na mistura",0.11]
[null,null,"Diesel - B20",0,"L/t milho",null,null,null,null,null,null,"Diesel - B20",0,"L/t soja",null,null,null,null,null,null,"Diesel - B20",0,"L/t soja"]
[null,null,"Diesel - B30",0,"L/t milho",null,null,null,null,null,null,"Diesel - B30",0,"L/t soja",null,null,null,null,null,null,"Diesel - B30",0,"L/t soja"]
[null,null,"Biodiesel - B100",0,"L/t milho",null,null,null,null,null,null,"Biodiesel - B100",0,"L/t soja",null,null,null,null,null,null,"Biodiesel - B100",0,"L/t soja"]
[null,null,"Gasolina C",0,"L/t milho",null,null,null,null,null,null,"Gasolina C",0,"L/t soja",null,null,null,null,null,null,"Gasolina C",0,"L/t soja"]
[null,null,"Etanol hidratado",0,"L/t milho",null,null,null,null,null,null,"Etanol hidratado",0,"L/t soja",null,null,null,null,null,null,"Etanol hidratado",0,"L/t soja"]
[null,null,"Biometano de terceiros",0,"Nm³/t milho",null,null,null,null,null,null,"Biometano de terceiros",0,"Nm³/t soja",null,null,null,null,null,null,"Biometano de terceiros",0,"Nm³/t soja"]
[null,null,"Biometano próprio",0,"Nm³/t milho",null,null,null,null,null,null,"Biometano próprio",0,"Nm³/t soja",null,null,null,null,null,null,"Biometano próprio",0,"Nm³/t soja"]
[null,null,"Eletricidade da rede - mix médio",0,"kWh/t milho",null,null,null,null,null,null,"Eletricidade da rede - mix médio",0,"kWh/t soja",null,null,null,null,null,null,"Eletricidade da rede - mix médio",0,"kWh/t soja"]
[null,null,"Eletricidade - PCH",0,"kWh/t milho",null,null,null,null,null,null,"Eletricidade - PCH",0,"kWh/t soja",null,null,null,null,null,null,"Eletricidade - PCH",0,"kWh/t soja"]
[null,null,"Eletricidade - biomassa",0,"kWh/t milho",null,null,null,null,null,null,"Eletricidade - biomassa",0,"kWh/t soja",null,null,null,null,null,null,"Eletricidade - biomassa",0,"kWh/t soja"]
[null,null,"Eletricidade - eólica",0,"kWh/t milho",null,null,null,null,null,null,"Eletricidade - eólica",0,"kWh/t soja",null,null,null,null,null,null,"Eletricidade - eólica",0,"kWh/t soja"]
[null,null,"Eletricidade - solar",0,"kWh/t milho",null,null,null,null,null,null,"Eletricidade - solar",0,"kWh/t soja",null,null,null,null,null,null,"Eletricidade - solar",0,"kWh/t soja"]

{"sheet":"Enderecos","index":8,"n_rows":24,"n_cols":5,"rows_kept":24,"cut":false,"hidden":true,"merged":[]}
["Não alterar posições das informações nessa planilha!"]
[]
[null,"Milho"]
[null,null,"Usina","Padrão","Guarda valores primários"]
[null,"Coluna valores",{"$f":"COLUMN('F1'!$D$37)","v":4},{"$f":"COLUMN('F1'!$M$37)","v":13},{"$f":"COLUMN('F1'!$V$37)","v":22}]
[null,"Coluna Especificar",{"$f":"COLUMN('F1'!$C$53)","v":3},{"$f":"COLUMN('F1'!$L$53)","v":12},{"$f":"COLUMN('F1'!$U$53)","v":21}]
[null,"Colunas %",{"$f":"COLUMN('F1'!$G$58)","v":7},{"$f":"COLUMN('F1'!$P$58)","v":16},{"$f":"COLUMN('F1'!$Y$58)","v":25}]
[null,"Linha Sementes",{"$f":"ROW('F1'!$D$37)","v":37}]
[null,"Linha Corretivos (inicio)",{"$f":"ROW('F1'!$D$32)","v":32}]
[null,"Linha Corretivos (fim)",{"$f":"ROW('F1'!$D$34)","v":34}]
[null,"Linha Fertilizantes (inicio)",{"$f":"ROW('F1'!$D$40)","v":40}]
[null,"Linha Fertilizantes (fim)",{"$f":"ROW('F1'!$D$55)","v":55}]
[null,"Linha Fertilizantes (\"especificar\" inicio)",{"$f":"ROW('F1'!$C$53)","v":53}]
[null,"Linha Fertilizantes (\"especificar\" fim)",{"$f":"ROW('F1'!$C$55)","v":55}]
[null,"Linha Fertilizantes org. (inicio)",{"$f":"ROW('F1'!$D$58)","v":58}]
[null,"Linha Fertilizantes org. (fim)",{"$f":"ROW('F1'!$D$62)","v":62}]
[null,"Linha Fertilizantes org. (\"especificar\" inicio)",{"$f":"ROW('F1'!$C$58)","v":58}]
[null,"Linha Fertilizantes org. (\"especificar\" fim)",{"$f":"ROW('F1'!$C$62)","v":62}]
[null,"Linha Combust. (inicio)",{"$f":"ROW('F1'!$D$65)","v":65}]
[null,"Linha Combust. (fim)",{"$f":"ROW('F1'!$D$79)","v":79}]
[null,"Linha BX",{"$f":"ROW('F1'!$G$67)","v":67}]
[null,"Linha default/primario",{"$f":"ROW('F1'!$V$28)","v":28}]
[null,"Coluna default/primario",{"$f":"COLUMN('F1'!$V$28)","v":22}]
[null,"Área total",{"$f":"ROW('F1'!$D$22)","v":22}]

{"sheet":"Listas","index":9,"n_rows":11,"n_cols":3,"rows_kept":11,"cut":false,"hidden":true,"merged":[]}
[]
[null,null,"Sim"]
[null,null,"Não"]
[]
[null,null,"Ativo"]
[null,null,"Pendente"]
[null,null,"Cancelado"]
[]
[null,null,"Convencional"]
[null,null,"Direto"]
[null,null,"Mínimo/Reduzido"]